Workbook

Sheet START (hidden)
B8: To use this template, please follow the instruction below, otherwise the template will not work.
D23: This workbook contains some macro content. To use this workbook, please enable the macro content by clicking on the yellow button above (just below the Ribbon), otherwise it will not be fully accessible.
D31: Select School Type:

Sheet Narrative
B1: School and Early Years Finance (England) Regulations | L1: =SUM(G7:G12) -> 0
B2: Local Authority Dedicated Schools Grant Deficit Recovery Plan
B7: Please complete this recovery plan template outlining how you will bring your DSG deficit back into balance within a 3 year time frame. Please complete all relevant fields and return the completed recovery plan to financial.management@education.gov.uk
B9: You may wish to include brief supporting attachments with your request such as forum minutes (if links not available) - these can be added towards the bottom of this page. Spreadsheet calculations should be included on the Financial Summary tab. Attachments should only be included as supplementary evidence and referenced in the ‘details of the request’ box.
B12: Local Authority | D12: Southwark
B13: Local Authority number | D13: =IFERROR(VLOOKUP(D12,Lists!A2:B152,2,FALSE),"") -> 210
B14: Does schools forum agree with this recovery plan and when was it presented to them? | D14: 2019-07-04
B15: If yes, please provide link(s) to the minutes and action plans from the schools forum agreement | D15: Will be provided after the meeting. Also x ref ro earlier meetings.
B19: What plans have you put in place to reduce the deficit in increments over the next 3 years?
B20: Block Transfers. Review and reduction of central retentions on the high needs block over time. Full transition to new scheme for mainstream top ups (LA invest to save resource secured). Reshape of resource units and special schools, including review of top ups. Joining regional arrangements for commissioning NMSS and independent provision. Review of AP including procurement. Growing in borough capacity including ASD secondary Free School & expanded Primnary provision and Resource Units for ASD at secondary level. Post 16 to 25 review including additional in borough capacity linked to Free School and working with Adult Services, including internships. Further additional measures are being developed with Schools Forum and the Local Authority in particular with regard to Year 3 savings within the plan.
D21: ="Word count: " & IF(LEN(B20)=0,0,LEN(TRIM(B20))-LEN(SUBSTITUTE(B20," ",""))+1) -> Word count: 122
B22: Can you specify how continuous improvement has reduced the deficit/ is going to reduce the deficit? This could include sharing best practice, new contracts, efficiency savings
B23: The LA is sharing best practice for example join up with other LAs on commissioning independent and NMSS. The review of central retentions includes a review of contracts e.g. SALT and also whether costs can be reduced/ income generated. There is a procurement exercise on alternative provision getting underway. The Authority is also building capacity particularly for ASD and post 16 provision working with the ESFA/ Special Free schools, as well as maintained settings. The Authority is also moving towards a more efficient system of mainstream top ups for all pupils, having piloted this for new entrants. Use of group tuition and e learning for AP but only where quality and safeguarding thresholds are met.
D24: ="Word count: " & IF(LEN(B23)=0,0,LEN(TRIM(B23))-LEN(SUBSTITUTE(B23," ",""))+1) -> Word count: 115
B25: Please provide details of any previous movements between blocks, what current cost pressures those movements covered, and why those transfers have not been adequate to counter the new cost pressures
B26: 2019-20 - £3.1 m Schools Block to High Needs (£1.2m plus prior years £1.9m). 2018-19 £1.9m Schools Block to High Needs (£0.2m schools block to central block). All transfers were to counter issues with orginal baseline and also high needs pressures all of which continue to be ongoing. In 2016-17 and 2015-16 there were transfers of £2.1m and £1.8m respectively.
D27: ="Word count: " & IF(LEN(B26)=0,0,LEN(TRIM(B26))-LEN(SUBSTITUTE(B26," ",""))+1) -> Word count: 60
B28: Please provide details of contributions coming from the health and social care budgets towards the cost of high needs provision
B29: Adults contribute £0.3m towards packages. Children's services will fund £0.48m invest to save on the transition to the new mainstream top up system.
D30: ="Word count: " & IF(LEN(B29)=0,0,LEN(TRIM(B29))-LEN(SUBSTITUTE(B29," ",""))+1) -> Word count: 23
B31: Please explain how the LA has discharged its duties under the Equality Act 2019, C&F Act 2014 and common law to consult with those affected by the changes proposed
B32: An equalities impact assessment was undertaken on the Schools Block Transfer Proposals 2019/20; this will be updated as and when it becomes necessary. When deciding on EHCPs consideration will be given the equalities impact.In December 2018, the High Needs Block sub group (a task group made up of heads of primary schools with and without resource bases, a secondary school, special schools and a Pupil Referral Unit) gave a report to the Schools Forum. This report made 18 recommendations to reduce the overspend on the high needs block. It recommended that the Local Authority undertake an equalities impact assessment for all proposals and consult schools and stakeholders (including parents) where relevant on the proposals. The 18 recommendations were all considered and two proposals were found to possibly be relevant to consultation with parents and schools if they were to go ahead. The first was the proposal to move all EHCPs funded under the old banding system pre 2018 from a two band system to a four band system for funding EHCPs. Following the Hackney Judicial Review in April, 2019, where the outcome stated that, as the Schools Forum had been consulted on the decision, no public consultation was required at common law, as an aspect of the Public Sector Equality Duty (PSED) in section 149 of the Equality Act (2010), it was proposed to ask Schools Forum whether they considered there still to be a duty on the Local Authority to consult schools and parents on this proposal. This decision will be taken to Schools Forum on 4th July. If Schools Forum decides that no further consultation is necessary, we will inform the parents and carers of any affected child or young person, and the schools that they attend, of the decision to move to a four banding system when it is made, and parents will have access to the usual processes under the C and F Act 2014 to appeal any EHCP funding decision using the usual channels. The second proposal that has implications for consultation with schools and parents/ carers is the proposal to review the Resource Bases. Once these reviews have been completed, we will consider whether any EIA and consultation is necessary with parents/ carers and the schools themselves and consult accordingly.
D33: ="Word count: " & IF(LEN(B32)=0,0,LEN(TRIM(B32))-LEN(SUBSTITUTE(B32," ",""))+1) -> Word count: 373
B35: Please include a summary of the savings/and or measure you propose to implement over the next three years which will reduce the overspend.
B36: S1 | C36: S1 - Central Retentions reductions/ cost recovery/ funding substitution
B37: S2 | C37: S2 - Measures to contain costs and activity on alternative provision
B38: S3 | C38: S3 - additional ASD capacity at all phases
B39: S4 | C39: S4 - mainstream top ups fully transition from old 2 band system to new 4 band system
B40: S5 | C40: S5 - Reshape of special provision, including review of top up levels by benchmarking
B41: S6 | C41: S6 - Measures to reduce & contain spend on 18-25 provision, including internships, own provision
B42: S7 | C42: S7- Savings/ cost avoidance from Regional Procurement arrangements for NMSS/ Independent provision
B43: S8 | C43: S8 -Securing partner contributions from health, adults and children's for residential placements
B45: Please discuss the local circumstances that have contributed to your deficit. Please provide a brief summary of the pressures in the box below and transfer the forecast spend in this area on the financial summary tab via the appropriate link. Local authorities should consider providing budget pressures in the following areas:
B46: A) mainstream schools; B) state-funded special schools, C) further education and sixth form colleges, D) independent specialist provision; E) alternative provision
B47: P1 | C47: P1 - Post 16, 18-25 and FE expansion of responsibilities/ increased parental expectations - lack of structural funding to meet costs
B48: P2 | C48: P2 - Use of Independent and NMSS due to increased demand/ need/ parental expectations and lack of capacity in borough
B49: P3 | C49: P3 - Increased demand/ need/ parental expectations impacting on mainstream & early years
B50: P4 | C50: P4 - Increased demand/ need/ parental expectation impacting on special schools
B51: P5 | C51: P5 - Increased demand for alternative provision flowing from exclusions, knife crime and unaccompanied minors
B53: Please provide any further detail here if required, including any attachments that support your recovery plan and any disapplication reference number.
B54: Evidence has been provided with regard to disapplication requests. Schools Forum agenda and minutes contain the report and recommendations of the Schools Forum Sub Group.
B56: Contact Name | D56: Russell Dyer
B57: Job Title | D57: Dept Finance Manager
B58: Email address | D58: russell.dyer@southwark.gov.uk
B59: Date | D59: 2019-06-30
B61: For Official use only
B62: Recovery Plan number
B63: ID
B64: DfE Response to Plan
B65: Details of the Decision
B67: Name
B68: Date
B69: Type of Notification
B72: Further Information
B73: High Needs Funding Arrangements | C73: Information for local authorities and institutions about high needs funding arrangements for 2019 to 2020.
B74: High Needs Benchmarking Tool | C74: Information for local authorities about strategic reviews, funding of high needs provision for children and young people with SEND and the High Needs benchmarking tool.

Sheet Financial Summary
B1: DSG Deficit Recovery Plan
B3: Ref. | E3: Action e.g. increasing special school places | G3: Year 1 | H3: Year 2 | I3: Year 3 | J3: Year 4 | K3: Year 5 | M3: Key
C4: Block | D4: Type of provision | F4: 2018-19 | G4: 2019-20 | H4: 2020-21 | I4: 2021-22 | J4: 2021-23 | K4: 2021-24 | M4: User entry required
D5: e.g. special schools | F5: £ | G5: £ | H5: £ | I5: £ | J5: £ | K5: £
B6: DSG Balance b/f | G6: =F31 -> 11500000 | H6: =G31 -> 17543000 | I6: =H31 -> 20344000 | J6: =I31 -> 20344000 | K6: 19844000
B7: Savings (figures should be entered as negative values)
B8: S1 | C8: High Needs | D8: Central Retain | E8: Other | G8: -1107000 | H8: -1325000 | I8: -980000 | J8: -200000 | K8: -200000
B9: S2 | C9: High Needs | D9: AP | E9: Other | G9: -600000 | H9: 0 | I9: 0 | J9: 0 | K9: 0
B10: S3 | C10: High Needs | D10: Special & Resource | E10: Capital investment in new, expanded or adapted special schools | G10: 0 | H10: -317000 | I10: 0 | J10: 0 | K10: 0
B11: S4 | C11: High Needs | D11: Mainstream | E11: Other | G11: 0 | H11: -1300000 | I11: 0 | J11: 0 | K11: 0
B12: S5 | C12: High Needs | D12: Special & Resource | E12: Other | G12: 0 | H12: -500000 | I12: 0 | J12: 0 | K12: 0
B13: S6 | C13: High Needs | D13: Post 16 & FE | E13: Active engagement of local schools and colleges in designing services and provision | G13: 0 | H13: 0 | I13: -890000 | J13: -350000 | K13: -200000
B14: S7 | C14: High Needs | D14: Ind/ NMSS | E14: Active engagement of independent / non-maintained providers in designing services and provision | G14: 0 | H14: 0 | I14: -788000 | J14: -350000 | K14: -200000
B15: S8 | C15: High Needs | D15: Ind | E15: Other | G15: 0 | H15: 0 | I15: -842000 | J15: -100000 | K15: -50000
B16: Total savings | F16: =SUM(F8:F15) -> 0 | G16: =SUM(G8:G15) -> -1707000 | H16: =SUM(H8:H15) -> -3442000 | I16: =SUM(I8:I15) -> -3500000 | J16: =SUM(J8:J15) -> -1000000 | K16: -650000
B17: Pressures (figures should be entered as positive values)
B18: P1 | C18: High Needs | D18: Post 16 & FE | E18: Other | G18: 5500000 | H18: 5500000 | I18: 4200000 | J18: 2700000 | K18: 2500000
B19: P2 | C19: High Needs | D19: Ind/ NMSS | E19: Other | G19: 4500000 | H19: 4500000 | I19: 4458000 | J19: 2958000 | K19: 2958000
B20: P3 | C20: High Needs | D20: Mainstream/EY | E20: Other | G20: 500000 | H20: 400000 | I20: 300000 | J20: 300000 | K20: 300000
B21: P4 | C21: High Needs | D21: Special & Resource | E21: Other | G21: 850000 | H21: 843000 | I21: 643000 | J21: 643000 | K21: 643000
B22: P5 | C22: High Needs | D22: AP | E22: Other | G22: 600000 | H22: 500000 | I22: 200000 | J22: 200000 | K22: 200000
B23: Additional Pressures (figures should be entered as positive values) | F23: =SUM(F18:F22) -> 0 | G23: =SUM(G18:G22) -> 11950000 | H23: =SUM(H18:H22) -> 11743000 | I23: =SUM(I18:I22) -> 9801000 | J23: =SUM(J18:J22) -> 6801000 | K23: 6601000
B24: Cost reductions from impact of recovery plan | F24: =SUM(F16,F23) -> 0 | G24: =SUM(G16,G23) -> 10243000 | H24: =H16+H23 -> 8301000 | I24: =I16+I23 -> 6301000 | J24: =J16+J23 -> 5801000 | K24: 5951000
B25: Total DSG forecast overspend
B26: Net in year impact on High Needs DSG | F26: =SUM(F24,F25) -> 0 | G26: =SUM(G24,G25) -> 10243000 | H26: =SUM(H24:H25) -> 8301000 | I26: 6301000 | J26: =SUM(J24:J25) -> 5801000 | K26: 5951000
B27: Estimated High Needs Block change (additional grant) | G27: -1100000 | H27: -500000 | I27: -500000 | J27: -500000 | K27: -500000
B28: Approved transfer of schools block to HN block | G28: -3100000 | H28: -5000000 | I28: -5801000 | J28: -5801000 | K28: -5801000
B29: Other adjustments
B30: Net in year Forecast Outturn Variance | F30: =SUM(F26:F29) -> 0 | G30: =SUM(G26:G29) -> 6043000 | H30: =SUM(H26:H29) -> 2801000 | I30: 0 | J30: =SUM(J26:J29) -> -500000 | K30: -350000
B31: DSG Balance – show a deficit as a positive value | F31: 11500000 | G31: =G6+G30 -> 17543000 | H31: =H6+H30 -> 20344000 | I31: =I6+I30 -> 20344000 | J31: =J6+J30 -> 19844000 | K31: 19494000
F32: =IF(F31>0,"DEFICIT","SURPLUS") -> DEFICIT | G32: =IF(G31>0,"DEFICIT","SURPLUS") -> DEFICIT | H32: =IF(H31>0,"DEFICIT","SURPLUS") -> DEFICIT | I32: DEFICIT | J32: =IF(J31>0,"DEFICIT","SURPLUS") -> DEFICIT | K32: DEFICIT
B35: Education, Health and Care Plans
E38: Number of CYP with Statements/ EHCPs | F38: Total HNB | G38: Outturn | H38: Cumulative
B39: 2016 | E39: 1875 | F39: 37130000 | G39: =F39 -> 37130000 | H39: 0
B40: 2017 | E40: 2035 | F40: 43360000 | G40: =F40+H40 -> 46970000 | H40: =4110000-500000 -> 3610000
B41: 2018 | E41: 2182 | F41: =41498000+1900000 -> 43398000 | G41: =F41+(H41-H40) -> 51288000 | H41: =11500000 -> 11500000
B42: 2019 | E42: 2322 | F42: 45700000 | G42: =F42+(H42-H41) -> 51743000 | H42: =G31 -> 17543000
B43: 2020 | E43: 2522 | F43: =45700000+1900000+500000 -> 48100000 | G43: =F43+(H43-H42) -> 50901000 | H43: =H31 -> 20344000
B44: 2021 | E44: 2750 | F44: =48100000+500000+801000 -> 49401000 | G44: =F44-(H44-H43) -> 49401000 | H44: =I31 -> 20344000
E48: 2016 | F48: % against total | G48: 2017 | H48: % against total | I48: 2018 | J48: % against total | K48: 2019 | L48: % against total | M48: 2020 | N48: % against total | O48: 2021 | P48: % against total
B49: Under Age 5 | E49: 45 | F49: =IFERROR(E49/E$54,"-") -> 0.024 | G49: 49 | H49: =IFERROR(G49/G$54,"-") -> 0.02407862408 | I49: 43 | J49: =IFERROR(I49/I$54,"-") -> 0.01970669111 | K49: 48 | L49: =IFERROR(K49/K$54,"-") -> 0.02067183463 | M49: 49 | N49: =IFERROR(M49/M$54,"-") -> 0.01942902458 | O49: 55 | P49: =IFERROR(O49/O$54,"-") -> 0.02
B50: Aged 5-10 | E50: 671 | F50: =IFERROR(E50/E$54,"-") -> 0.3578666667 | G50: 682 | H50: =IFERROR(G50/G$54,"-") -> 0.3351351351 | I50: 693 | J50: =IFERROR(I50/I$54,"-") -> 0.3175985335 | K50: 707 | L50: =IFERROR(K50/K$54,"-") -> 0.3044788975 | M50: 788 | N50: =IFERROR(M50/M$54,"-") -> 0.3124504362 | O50: 862 | P50: =IFERROR(O50/O$54,"-") -> 0.3134545455
B51: Aged 11-15 | E51: 641 | F51: =IFERROR(E51/E$54,"-") -> 0.3418666667 | G51: 671 | H51: =IFERROR(G51/G$54,"-") -> 0.3297297297 | I51: 708 | J51: =IFERROR(I51/I$54,"-") -> 0.3244729606 | K51: 756 | L51: =IFERROR(K51/K$54,"-") -> 0.3255813953 | M51: 805 | N51: =IFERROR(M51/M$54,"-") -> 0.3191911182 | O51: 889 | P51: 0.3232727273
B52: Aged 16-19 | E52: 404 | F52: =IFERROR(E52/E$54,"-") -> 0.2154666667 | G52: 477 | H52: =IFERROR(G52/G$54,"-") -> 0.2343980344 | I52: 524 | J52: =IFERROR(I52/I$54,"-") -> 0.2401466544 | K52: 538 | L52: =IFERROR(K52/K$54,"-") -> 0.2316968131 | M52: 585 | N52: =IFERROR(M52/M$54,"-") -> 0.2319587629 | O52: 644 | P52: 0.2341818182
B53: Aged 20-25 | E53: 114 | F53: =IFERROR(E53/E$54,"-") -> 0.0608 | G53: 156 | H53: =IFERROR(G53/G$54,"-") -> 0.07665847666 | I53: 214 | J53: =IFERROR(I53/I$54,"-") -> 0.0980751604 | K53: 273 | L53: =IFERROR(K53/K$54,"-") -> 0.1175710594 | M53: 295 | N53: =IFERROR(M53/M$54,"-") -> 0.1169706582 | O53: 300 | P53: 0.1090909091
B54: Total | E54: =SUM(E49:E53) -> 1875 | F54: 1 | G54: 2035 | H54: 1 | I54: 2182 | J54: 1 | K54: 2322 | L54: 1 | M54: 2522 | N54: 1 | O54: =SUM(O49:O53) -> 2750 | P54: 1

Sheet Lists (hidden)
A1: Local Authority Name | B1: Local Authority number | C1: Blocks | D1: Savings | E1: Pressures
A2: Barking and Dagenham | B2: 301 | C2: CSSB | D2: Active engagement of independent / non-maintained providers in designing services and provision | E2: Difficulties arising from the funding formula
A3: Barnet | B3: 302 | C3: Early Years | D3: Active engagement of local schools and colleges in designing services and provision | E3: Greater complexity of need
A4: Barnsley | B4: 370 | C4: High Needs | D4: Active engagement of parents and young people in designing services and provision | E4: High rates of exclusions and use of AP
A5: Bath & North East Somerset | B5: 800 | C5: Schools | D5: Capital investment in new or expanded special units / resourced provision | E5: Higher parental expectations
A6: Bedford | B6: 822 | D6: Capital investment in new, expanded or adapted special schools | E6: Increase in the number of EHC Plans
A7: Bexley | B7: 303 | D7: Increased resource for mainstream schools – specialist support services (funded from HN) | E7: Increased use of INMSS or out of area placements
A8: Birmingham | B8: 330 | D8: Increased resource for mainstream schools – targeted funding | E8: Placements in independent and non-maintained schools
A9: Blackburn with Darwen | B9: 889 | D9: Increased resource for mainstream schools – training / development for staff | E9: Poor local mental health services
A10: Blackpool | B10: 890 | D10: Other | E10: Population growth
A11: Bolton | B11: 350 | E11: Post-16 responsibilities
A12: Bournemouth, Christcurch & Poole | B12: 839 | E12: Pressure on maintained special school capacity
A13: Bracknell Forest | B13: 867 | E13: Reduced inclusivity of schools
A14: Bradford | B14: 380 | E14: Reductions in health service provision, e.g. OT, physio, speech and language therapy
A15: Brent | B15: 304 | E15: Reductions in short breaks
A16: Brighton and Hove | B16: 846 | E16: Specific needs of children with SEMH/ASD
A17: Bristol, City of | B17: 801 | E17: SEN Units
A18: Bromley | B18: 305 | E18: Other
A19: Buckinghamshire | B19: 825
A20: Bury | B20: 351
A21: Calderdale | B21: 381
A22: Cambridgeshire | B22: 873
A23: Camden | B23: 202
A24: Central Bedfordshire | B24: 823
A25: Cheshire West and Chester | B25: 896
A26: City of London | B26: 201
A27: Cornwall | B27: 908
A28: Coventry | B28: 331
A29: Croydon | B29: 306
A30: Cumbria | B30: 909
A31: Darlington | B31: 841
A32: Derby | B32: 831
A33: Derbyshire | B33: 830
A34: Devon | B34: 878
A35: Doncaster | B35: 371
A36: Dorset | B36: 838
A37: Dudley | B37: 332
A38: Durham | B38: 840
A39: Ealing | B39: 307
A40: East Cheshire | B40: 895
A41: East Riding of Yorkshire | B41: 811
A42: East Sussex | B42: 845
A43: Enfield | B43: 308
A44: Essex | B44: 881
A45: Gateshead | B45: 390
A46: Gloucestershire | B46: 916
A47: Greenwich | B47: 203
A48: Hackney | B48: 204
A49: Halton | B49: 876
A50: Hammersmith and Fulham | B50: 205
A51: Hampshire | B51: 850
A52: Haringey | B52: 309
A53: Harrow | B53: 310
A54: Hartlepool | B54: 805
A55: Havering | B55: 311
A56: Herefordshire | B56: 884
A57: Hertfordshire | B57: 919
A58: Hillingdon | B58: 312
A59: Hounslow | B59: 313
A60: Isle of Wight | B60: 921
A61: Isles of Scilly | B61: 420
A62: Islington | B62: 206
A63: Kensington and Chelsea | B63: 207
A64: Kent | B64: 886
A65: Kingston | B65: 314
A66: Kingston Upon Hull, City of | B66: 810
A67: Kirklees | B67: 382
A68: Knowsley | B68: 340
A69: Lambeth | B69: 208
A70: Lancashire | B70: 888
A71: Leeds | B71: 383
A72: Leicester | B72: 856
A73: Leicestershire | B73: 855
A74: Lewisham | B74: 209
A75: Lincolnshire | B75: 925
A76: Liverpool | B76: 341
A77: Luton | B77: 821
A78: Manchester | B78: 352
A79: Medway | B79: 887
A80: Merton | B80: 315
A81: Middlesbrough | B81: 806
A82: Milton Keynes | B82: 826
A83: Newcastle upon Tyne | B83: 391
A84: Newham | B84: 316
A85: Norfolk | B85: 926
A86: North East Lincolnshire | B86: 812
A87: North Lincolnshire | B87: 813
A88: North Somerset | B88: 802
A89: North Tyneside | B89: 392
A90: North Yorkshire | B90: 815
A91: Northamptonshire | B91: 928
A92: Northumberland | B92: 929
A93: Nottingham | B93: 892
A94: Nottinghamshire | B94: 891
A95: Oldham | B95: 353
A96: Oxfordshire | B96: 931
A97: Peterborough | B97: 874
A98: Plymouth | B98: 879
A99: Portsmouth | B99: 851
A100: Reading | B100: 870
A101: Redbridge | B101: 317
A102: Redcar and Cleveland | B102: 807
A103: Richmond upon Thames | B103: 318
A104: Rochdale | B104: 354
A105: Rotherham | B105: 372
A106: Rutland | B106: 857
A107: Salford | B107: 355
A108: Sandwell | B108: 333
A109: Sefton | B109: 343
A110: Sheffield | B110: 373
A111: Shropshire | B111: 893
A112: Slough | B112: 871
A113: Solihull | B113: 334
A114: Somerset | B114: 933
A115: South Gloucestershire | B115: 803
A116: South Tyneside | B116: 393
A117: Southampton | B117: 852
A118: Southend-on-Sea | B118: 882
A119: Southwark | B119: 210
A120: St Helens | B120: 342
A121: Staffordshire | B121: 860
A122: Stockport | B122: 356
A123: Stockton-on-Tees | B123: 808
A124: Stoke-on-Trent | B124: 861
A125: Suffolk | B125: 935
A126: Sunderland | B126: 394
A127: Surrey | B127: 936
A128: Sutton | B128: 319
A129: Swindon | B129: 866
A130: Tameside | B130: 357
A131: Telford and Wrekin | B131: 894
A132: Thurrock | B132: 883
A133: Torbay | B133: 880
A134: Tower Hamlets | B134: 211
A135: Trafford | B135: 358
A136: Wakefield | B136: 384
A137: Walsall | B137: 335
A138: Waltham Forest | B138: 320
A139: Wandsworth | B139: 212
A140: Warrington | B140: 877
A141: Warwickshire | B141: 937
A142: West Berkshire | B142: 869
A143: West Sussex | B143: 938
A144: Westminster | B144: 213
A145: Wigan | B145: 359
A146: Wiltshire | B146: 865
A147: Windsor and Maidenhead | B147: 868
A148: Wirral | B148: 344
A149: Wokingham | B149: 872
A150: Wolverhampton | B150: 336
A151: Worcestershire | B151: 885
A152: York | B152: 816
